[Event "13th Palmanova Festival A 2024"]
[Site "Palmanova"]
[Date "2025.01.01"]
[Round "7.1"]
[White "Martinovici, Ilia"]
[Black "Di Benedetto, Edoardo"]
[Result "1/2-1/2"]
[ECO "D02"]
[WhiteElo "2473"]
[BlackElo "2411"]
[Annotator "TA"]
[PlyCount "22"]
[EventDate "2024.12.27"]
[EventCountry "ITA"]
[SourceTitle "playchess.com"]
[Source "ChessBase"]
[SourceQuality "1"]
[TimeControl "6000+30"]

{[%evp 14,22,4,6,56,77,66,79,56,36,36]} 1. d4 {[%emt 0:05:39]} d5 {[%emt 0:00:04]} 2. Nf3 {[%emt 0:00:07]} Nf6 {[%emt 0:00:08]} 3. c3 {[%emt 0:00:03]} e6 {[%emt 0:01:53]} 4. Bf4 {[%emt 0:00:06][%cal Bc1f4,Bf4g3,Bg3h4][%mdl 32]} c5 {[%emt 0:03:29]} 5. e3 {[%emt 0:00:06]} Nc6 {[%emt 0:00:58]} 6. Nbd2 {[%emt 0:00:15]} Bd6 {[%emt 0:02:13]} 7. Bg3 {[%emt 0:00:38]} Qe7 {[%emt 0:04:46]} 8. Ne5 {[%emt 0:00:19]} Bxe5 {[%emt 0:01:55]} ({Black should play} 8... O-O $11) 9. dxe5 $14 {[%emt 0:01:12]} Nd7 {[%emt 0:00:07]} 10. f4 {[%emt 0:05:15]} f6 {[%emt 0:10:14]} 11. Bh4 {[%emt 0:12:02]} O-O {[%emt 0:06:49]} 1/2-1/2

[Event "13th Palmanova Festival A 2024"]
[Site "Palmanova"]
[Date "2025.01.01"]
[Round "7.2"]
[White "Dobrovoljc, Vid"]
[Black "Lumachi, Gabriele"]
[Result "1/2-1/2"]
[ECO "B00"]
[WhiteElo "2365"]
[BlackElo "2438"]
[Annotator "TA"]
[PlyCount "59"]
[EventDate "2024.12.27"]
[EventCountry "ITA"]
[SourceTitle "playchess.com"]
[Source "ChessBase"]
[SourceQuality "1"]
[TimeControl "6000+30"]

{[%evp 9,59,33,38,28,35,25,25,18,39,19,25,6,14,0,0,0,5,20,16,12,13,18,34,26,8,6,6,10,8,-10,-9,-15,0,-16,-10,-20,-22,-18,-6,-6,0,0,0,0,0,0,0,0,0,0,0,0]} 1. e4 {[%emt 0:05:55]} Nc6 {[%emt 0:00:07]} 2. Nf3 {[%emt 0:01:25]} d6 {[%emt 1:41:23]} 3. d4 {[%emt 0:04:42]} Nf6 {[%emt 0:00:00]} 4. Nc3 {[%emt 0:02:15]} g6 {[%emt 0:00:00]} 5. Bb5 {[%emt 0:06:55]} a6 $1 {[%emt 0:00:00]} 6. Bxc6+ {[%emt 0:00:04]} bxc6 {[%emt 0:00:00]} 7. O-O {[%emt 0:00:32]} Bg7 {[%emt 0:00:00]} 8. Re1 {[%emt 0:04:18]} O-O {[%emt 0:00:00]} 9. h3 {[%emt 0:00:17]} Rb8 {[%emt 0:00:00]} 10. Rb1 {[%emt 0:03:06]} Nd7 {[%emt 0:00:00]} 11. Be3 {[%emt 0:02:35]} c5 {[%emt 0:00:00]} 12. dxc5 {[%emt 0:20:30]} Nxc5 {[%emt 0:00:00]} (12... Rxb2 $5 13. Rxb2 Bxc3 $14) 13. Bxc5 {[%emt 0:09:43] Black must now prevent Bd4.} Bxc3 {[%emt 0:00:00]} 14. bxc3 {[%emt 0:01:06]} Rxb1 {[%emt 0:00:00]} 15. Qxb1 {[%emt 0:00:02]} dxc5 {[%emt 0:00:00]} 16. Rd1 {[%emt 0:08:32][%cal Be1d1,Bd1d5,Bd5c5,Bc5c7][%mdl 32]} Qe8 {[%emt 0:00:00]} 17. Rd5 {[%emt 0:07:18]} Qa4 {[%emt 0:00:00]} 18. Rxc5 {[%emt 0:02:07]} Qxe4 {[%emt 0:00:00][%cal Oc8h3]} 19. Rxc7 {[%emt 0:07:20] [#]} Bxh3 $1 {[%emt 0:00:00]} 20. Qb4 {[%emt 0:04:59]} Bf5 {[%emt 0:00:00]} 21. Qxe4 {[%emt 0:03:39]} Bxe4 $11 {[%emt 0:00:00][%mdl 4096] Endgame KRB-KRN} 22. Ng5 {[%emt 0:01:43]} Bxc2 {[%emt 0:00:00]} 23. Rxe7 {[%emt 0:00:09]} Bd3 {[%emt 0:00:00]} 24. a4 {[%emt 0:04:51]} h6 {[%emt 0:00:00]} 25. Nf3 {[%emt 0:00:27]} Rc8 {[%emt 0:00:00][%cal Oc8c5]} 26. Ne5 {[%emt 0:00:36][%csl LRd3,LRf7]} Bc4 {[%emt 0:00:00]} 27. Ra7 {[%emt 0:00:32]} Kg7 {[%emt 0:00:00]} 28. Nxc4 {[%emt 0:01:09]} Rxc4 {[%emt 0:00:00]} 29. Rxa6 {[%emt 0:00:10]} Rxc3 {[%emt 0:00:00]} 30. g3 {[%emt 0:00:23]} 1/2-1/2

[Event "13th Palmanova Festival A 2024"]
[Site "Palmanova"]
[Date "2025.01.01"]
[Round "7.3"]
[White "Savanovic, Aleksandar"]
[Black "Bettalli, Francesco"]
[Result "1/2-1/2"]
[ECO "B69"]
[WhiteElo "2354"]
[BlackElo "2359"]
[Annotator "TA"]
[PlyCount "105"]
[EventDate "2024.12.27"]
[EventCountry "ITA"]
[SourceTitle "playchess.com"]
[Source "ChessBase"]
[SourceQuality "1"]
[TimeControl "6000+30"]

{[%evp 27,105,40,58,20,31,0,-3,0,8,12,16,17,31,26,50,44,57,61,58,28,22,29,30,26,34,0,5,0,0,0,0,0,0,0,0,0,0,0,86,79,146,146,171,103,135,133,150,143,153,154,156,138,148,136,145,96,89,69,75,68,95,76,68,0,102,0,82,0,0,0,0,0,0,0,0,0,0,0,0,0]} 1. e4 {[%emt 0:00:04]} c5 {[%emt 0:08:19]} 2. Nf3 {[%emt 0:01:00]} Nc6 {[%emt 0:00:14]} 3. d4 {[%emt 0:00:09]} cxd4 {[%emt 0:00:06]} 4. Nxd4 {[%emt 0:00:07]} Nf6 {[%emt 0:00:23]} 5. Nc3 {[%emt 0:00:06]} d6 {[%emt 0:00:20]} 6. Bg5 {[%emt 0:01:05]} Bd7 {[%emt 0:00:51]} 7. Qd2 {[%emt 0:00:12]} a6 {[%emt 0:00:08]} 8. O-O-O {[%emt 0:00:09]} e6 {[%emt 0:00:05]} 9. f4 {[%emt 0:01:02]} Be7 {[%emt 0:00:15]} 10. Nf3 {[%emt 0:01:30]} b5 {[%emt 0:00:19]} 11. Bxf6 {[%emt 0:00:09]} gxf6 {[%emt 0:00:03]} 12. f5 {[%emt 0:02:34]} Qb6 {[%emt 0:01:11]} 13. Kb1 {[%emt 0:00:08]} O-O-O {[%emt 0:00:42]} 14. g3 {[%emt 0:02:11]} Na5 {[%emt 0:00:25]} 15. Qe1 {[%emt 0:07:38]} b4 {[%emt 0:03:43]} 16. fxe6 {[%emt 0:00:08]} fxe6 {[%emt 0:01:12]} 17. Ne2 {[%emt 0:00:07]} e5 $1 {[%emt 0:02:21]} 18. Nc1 {[%emt 0:07:55]} Be6 {[%emt 0:05:27]} 19. Bd3 {[%emt 0:08:48]} Kb8 {[%emt 0:13:59]} 20. Qe2 {[%emt 0:10:36]} Ka7 {[%emt 0:01:59]} 21. Nb3 {[%emt 0:03:45]} Rc8 {[%emt 0:05:22]} 22. Nfd2 {[%emt 0:01:30]} d5 {[%emt 0:05:36]} 23. Nxa5 {[%emt 0:02:33]} Qxa5 {[%emt 0:00:06]} 24. Nb3 {[%emt 0:00:45]} Qb6 $1 {[%emt 0:00:44]} 25. exd5 {[%emt 0:00:15]} Bxd5 {[%emt 0:00:03]} 26. Be4 {[%emt 0:03:34]} Be6 {[%emt 0:01:37]} 27. Qf3 {[%emt 0:02:02]} a5 {[%emt 0:07:50]} 28. Bf5 {[%emt 0:03:58]} a4 $1 {[%emt 0:00:48]} (28... Bxf5 $6 29. Qxf5 Rhd8 30. Qxh7 $16) 29. Bxe6 {[%emt 0:02:28]} Qxe6 {[%emt 0:00:13]} 30. Qe3+ {[%emt 0:33:29]} Kb8 {[%emt 0:00:54]} 31. Qe2 {[%emt 0:02:47]} Qb6 {[%emt 0:19:10]} (31... axb3 $2 32. Qb5+ Kc7 33. cxb3 $16) 32. Nd4 {[%emt 0:00:30]} exd4 {[%emt 0:05:23]} (32... a3 $11 {keeps the balance.}) 33. Qxe7 $16 {[%emt 0:00:18]} a3 {[%emt 0:02:25]} (33... Rc7 $142 34. Qe4 Rd8) 34. Rhe1 $16 {[%emt 0:01:46]} Rc6 {[%emt 0:00:58]} 35. Qd7 {[%emt 0:03:11]} (35. Re2 $18) 35... Rd6 {[%emt 0:00:42]} 36. Qa4 {[%emt 0:01:19]} axb2 {[%emt 0:02:47] [#]} 37. Rd3 $1 {[%emt 0:00:32]} (37. Kxb2 $6 Qc5 $14) 37... Qc5 {[%emt 0:00:49]} 38. Rb3 {[%emt 0:01:23]} (38. Kxb2 $6 Rc8 $14) 38... Rb6 {[%emt 0:00:18]} 39. Re8+ {[%emt 0:01:00]} (39. Rxb2 $6 Rc8 $16) 39... Rxe8 {[%emt 0:00:08]} 40. Qxe8+ {[%emt 0:00:02]} Ka7 {[%emt 0:02:16]} 41. Qa4+ {[%emt 0:01:30]} (41. Kxb2 h6 $14) ({Reject} 41. Rxb2 $6 d3 42. Qa4+ (42. cxd3 Qg1+ 43. Kc2 Qg2+ 44. Kb3 Qd5+ 45. Kc2 Qg2+ 46. Kb3 Qd5+ 47. Kc2 Qc5+ 48. Kd1 Qg1+ 49. Kc2 Qxh2+ 50. Kb3 Qh1 $11) 42... Ra6 43. Qd7+ (43. Qxb4 $2 {gets mated.} Qg1+) 43... Kb6 $11) ({White should try} 41. Qf7+ Ka6 42. Rf3 (42. Kxb2 Rc6 $17) (42. Rxb2 $2 d3 $19) (42. Qxh7 f5 $16)) 41... Kb8 $16 {[%emt 0:00:38]} 42. Kxb2 {[%emt 0:02:41]} (42. g4 {seems wilder.} h6 43. h4 Kb7 44. Qe8) 42... h5 {[%emt 0:03:08]} 43. Qe8+ {[%emt 0:02:46]} Ka7 {[%emt 0:00:44]} 44. Qd7+ {[%emt 0:00:26]} Kb8 {[%emt 0:00:22]} 45. Qe8+ {[%emt 0:01:13]} Ka7 $1 {[%emt 0:00:05]} 46. Qa4+ {[%emt 0:00:05]} Kb8 {[%emt 0:00:12]} 47. a3 {[%emt 0:00:00]} (47. Kb1 $16) 47... bxa3+ $11 {[%emt 0:00:00]} 48. Qxa3 {[%emt 0:00:00]} Rxb3+ {[%emt 0:00:00]} 49. Qxb3+ {[%emt 0:00:00]} Kc7 {[%emt 0:00:00]} 50. Qf7+ {[%emt 0:00:00]} Kb8 {[%emt 0:00:00]} 51. Qe6 {[%emt 0:00:00]} Kc7 {[%emt 0:00:00]} 52. Qf7+ {[%emt 0:00:00]} Kb8 {[%emt 0:00:00]} 53. Qd7 {[%emt 0:00:00]} 1/2-1/2

[Event "13th Palmanova Festival A 2024"]
[Site "Palmanova"]
[Date "2025.01.01"]
[Round "7.4"]
[White "Candian, Lorenzo"]
[Black "Zamengo, Fulvio"]
[Result "0-1"]
[ECO "D00"]
[WhiteElo "2208"]
[BlackElo "2348"]
[Annotator "TA"]
[PlyCount "74"]
[EventDate "2024.12.27"]
[EventCountry "ITA"]
[SourceTitle "playchess.com"]
[Source "ChessBase"]
[SourceQuality "1"]
[TimeControl "6000+30"]

{[%evp 9,74,-56,-43,-37,-34,-43,-38,-40,-39,-34,-27,-131,-129,-122,-118,-128,-147,-215,-220,-217,-102,-119,-150,-131,-118,-156,-158,-164,-119,-148,-159,-138,108,-325,-284,-604,-591,-691,-729,-646,-389,-382,-316,-305,-325,-310,-317,-324,-283,-278,-261,-341,-344,-362,-331,-397,-378,-489,-487,-1153,-1415,-29993,-29994,-29994,-29995,-29995,-29996]} 1. d4 {[%emt 0:04:12]} d5 {[%emt 0:08:54]} 2. e4 {[%emt 0:04:57]} dxe4 {[%emt 0:01:06]} 3. Nc3 {[%emt 0:00:04]} Nf6 {[%emt 0:00:06]} 4. f3 {[%emt 0:00:05]} exf3 {[%emt 0:00:37]} 5. Nxf3 {[%emt 0:00:05]} g6 {[%emt 0:00:06]} 6. Bg5 {[%emt 0:00:10]} Bg7 {[%emt 0:00:06]} 7. Qd2 {[%emt 0:00:05]} O-O {[%emt 0:02:12]} 8. O-O-O {[%emt 0:00:03] Black is slightly better.} Bf5 {[%emt 0:09:37]} 9. Bh6 {[%emt 0:25:43]} Nbd7 {[%emt 0:03:54]} 10. h4 {[%emt 0:09:43]} (10. Bxg7 $11 Kxg7 11. d5) 10... Bxh6 $1 $17 {[%emt 0:01:59]} 11. Qxh6 {[%emt 0:00:12]} Ng4 {[%emt 0:00:05]} 12. Qf4 {[%emt 0:15:36]} Nf2 {[%emt 0:28:27][%csl LRd1,LRh1]} 13. Rd2 {[%emt 0:01:40]} (13. Bc4 $17) 13... Nxh1 $19 {[%emt 0:01:13]} 14. g4 {[%emt 0:00:07] [#]} Nf6 $1 {[%emt 0:04:48]} 15. gxf5 $17 {[%emt 0:01:33]} Qd6 $1 {[%emt 0:11:18]} 16. Ne5 {[%emt 0:03:10]} Nh5 {[%emt 0:00:13]} 17. Qh6 {[%emt 0:05:13]} N1g3 {[%emt 0:00:06] Dodges Ne4} (17... gxf5 $2 18. Qxh5 Kh8 19. Nxf7+ Rxf7 20. Qxf7 $18) 18. fxg6 {[%emt 0:02:43]} fxg6 {[%emt 0:01:40]} (18... Nxf1 19. Qxh7#) 19. Bc4+ {[%emt 0:01:40]} Kh8 {[%emt 0:03:16]} 20. Nb5 {[%emt 0:30:24]} Qb6 {[%emt 0:01:30] [#]} (20... Nf5 $17 {stays on course.} 21. Nf7+ Rxf7 22. Nxd6 Nxh6 23. Nxf7+ Nxf7 24. Bxf7 Rf8) 21. Bf7 $2 {[%emt 0:01:31][%mdl 8192] Loses the game.} Nf5 {[%emt 0:03:32]} (21... Qxb5 22. Nxg6#) 22. Qg5 {[%emt 0:00:15]} (22. Nxg6+ Qxg6 23. Bxg6 Nxh6 24. Bxh5) 22... Qxb5 $19 {[%emt 0:00:53]} 23. c4 {[%emt 0:00:51]} Qa6 {[%emt 0:01:13][%cal Oh8g7]} 24. Bxg6 {[%emt 0:00:20]} hxg6 {[%emt 0:04:25]} 25. Nxg6+ {[%emt 0:00:03]} Kh7 {[%emt 0:00:08]} 26. Qxh5+ {[%emt 0:00:29]} Nh6 {[%emt 0:00:06]} 27. Nxf8+ {[%emt 0:01:32]} Rxf8 {[%emt 0:00:01]} 28. Qe2 {[%emt 0:00:01]} Qf6 {[%emt 0:02:49]} ({Less strong is} 28... Qxa2 29. Qxe7+ Rf7 30. Qe4+ Kg7 (30... Nf5 $2 31. d5 $19) 31. Qe5+ Kf8 32. Qc5+ (32. Qh8+ $2 Ng8 $19) 32... Kg8 33. Qd5 $19) 29. Qe4+ {[%emt 0:00:12]} Kh8 {[%emt 0:00:01]} 30. b3 {[%emt 0:00:29]} c6 {[%emt 0:00:06]} 31. Kb2 {[%emt 0:01:33]} Rg8 {[%emt 0:05:49]} 32. Re2 {[%emt 0:00:44]} Nf5 {[%emt 0:00:12][%cal Of5g3] ...Ng3! would now be deadly.} 33. Rd2 {[%emt 0:00:39]} Rd8 {[%emt 0:01:02][%cal Rd8d4]} (33... Qxh4 $2 {perishes.} 34. Qxf5 Rg7 35. Qc8+ Kh7 36. Qxb7 $18) 34. Kc3 {[%emt 0:00:48] [#]} (34. Kc1 $142) 34... Nxd4 $1 {[%emt 0:00:09][%mdl 512] ( -> ...Ne2+)} 35. Kb4 {[%emt 0:00:22] [#]} (35. Rd3 c5) 35... c5+ $1 {[%emt 0:00:15] Black mates.} 36. Ka3 {[%emt 0:00:22] [#]} Nb5+ $1 {[%emt 0:00:10][%mdl 512]} 37. cxb5 {[%emt 0:00:01]} Rxd2 {[%emt 0:00:07] Weighted Error Value: White=0.82/Black=0.36.  Loses game:     	White=1     	---        Mistake:       	White=4     	Black=2      Inaccurate:     	White=3     	---        OK:         	White=12    	Black=10     Best:        	White=1     	Black=4      Strong:       	---       	Black=2      Brilliant:      	---       	Black=1} 0-1

[Event "13th Palmanova Festival A 2024"]
[Site "Palmanova"]
[Date "2025.01.01"]
[Round "7.5"]
[White "Adharsh K"]
[Black "Cina`, Vittorio"]
[Result "1/2-1/2"]
[ECO "B12"]
[WhiteElo "2235"]
[BlackElo "2325"]
[Annotator "TA"]
[PlyCount "60"]
[EventDate "2024.12.27"]
[EventCountry "ITA"]
[SourceTitle "playchess.com"]
[Source "ChessBase"]
[SourceQuality "1"]
[TimeControl "6000+30"]

{[%evp 9,60,8,14,10,23,15,26,8,14,7,8,0,0,10,13,0,0,0,-7,-30,-29,-29,-29,-30,-10,-9,-15,-15,-15,-15,-15,-34,-34,-35,-22,-28,-23,-39,0,0,0,0,0,0,0,0,0,0,0,0,0,0,0]} 1. e4 {[%emt 0:00:25]} c6 {[%emt 0:02:13]} 2. d4 {[%emt 0:00:23]} d5 {[%emt 0:00:06]} 3. e5 {[%emt 0:00:08]} Bf5 {[%emt 0:00:05]} 4. h4 {[%emt 0:00:15]} h5 {[%emt 0:00:15]} 5. Bd3 {[%emt 0:00:10]} Bxd3 {[%emt 0:00:11]} 6. Qxd3 {[%emt 0:00:06][%cal Oe5e6]} Qa5+ {[%emt 0:00:06]} 7. Nd2 {[%emt 0:00:20][%cal Oe5e6] aiming for e6!} e6 {[%emt 0:00:05]} 8. Ngf3 {[%emt 0:01:57] White has an edge.} Nh6 {[%emt 0:00:13]} 9. O-O {[%emt 0:04:40]} Nf5 {[%emt 0:00:11]} 10. Rd1 {[%emt 0:12:09]} Be7 {[%emt 0:03:25]} 11. g3 {[%emt 0:01:40]} O-O {[%emt 0:02:33]} 12. Nf1 {[%emt 0:12:39]} c5 {[%emt 0:09:36]} 13. c3 {[%emt 0:10:41]} Qa6 {[%emt 0:03:20]} 14. Ne3 {[%emt 0:09:53]} Qxd3 {[%emt 0:06:49]} 15. Rxd3 {[%emt 0:00:03]} Nxe3 {[%emt 0:00:44]} 16. Bxe3 {[%emt 0:00:06]} Nd7 {[%emt 0:12:39]} 17. dxc5 {[%emt 0:02:37]} Bxc5 {[%emt 0:04:19]} 18. Bxc5 {[%emt 0:07:07]} Nxc5 {[%emt 0:00:06]} 19. Rd4 {[%emt 0:00:14]} b5 {[%emt 0:01:44]} 20. Nd2 {[%emt 0:08:31]} a5 {[%emt 0:08:11]} 21. Kf1 {[%emt 0:07:33]} f6 {[%emt 0:09:22]} 22. exf6 {[%emt 0:02:26]} gxf6 {[%emt 0:01:23]} 23. Re1 {[%emt 0:00:48]} Rad8 {[%emt 0:03:50] [#] ...e5 is the strong threat.} 24. Nb3 {[%emt 0:03:11] The position is equal.} Nxb3 {[%emt 0:05:16]} 25. axb3 $11 {[%emt 0:00:06][%mdl 4096] Endgame. KRR-KRR} e5 {[%emt 0:00:34]} 26. Rd2 {[%emt 0:00:12]} Rd6 {[%emt 0:02:17]} 27. Ra1 {[%emt 0:00:05]} Ra8 {[%emt 0:00:26]} 28. Rad1 {[%emt 0:00:06]} Rad8 {[%emt 0:03:10]} 29. Ra1 {[%emt 0:00:05]} Ra6 {[%emt 0:02:02]} 30. Rad1 {[%emt 0:00:07]} Rad6 {[%emt 0:00:04] Weighted Error Value: White=0.06 (flawless) /Black=0.04 (flawless) .  Inaccurate:     	---       	Black=1      OK:         	White=8     	Black=10     Best:        	White=1     	Black=2} 1/2-1/2

[Event "13th Palmanova Festival A 2024"]
[Site "Palmanova"]
[Date "2025.01.01"]
[Round "7.6"]
[White "Kalosha, Zhiulien Oleksii"]
[Black "Knudsen, Simon"]
[Result "1/2-1/2"]
[ECO "D97"]
[WhiteElo "2306"]
[BlackElo "2303"]
[Annotator "TA"]
[PlyCount "155"]
[EventDate "2024.12.27"]
[EventCountry "ITA"]
[SourceTitle "playchess.com"]
[Source "ChessBase"]
[SourceQuality "1"]
[TimeControl "6000+30"]

{[%evp 14,155,21,8,21,34,45,55,37,35,43,41,29,37,62,51,43,40,32,48,41,41,26,40,74,53,48,57,68,59,57,56,57,54,55,55,53,50,52,51,56,63,134,14,24,-15,0,0,96,87,187,190,195,119,277,273,250,215,512,215,552,529,632,179,179,0,342,69,69,0,0,0,52,52,52,52,53,53,53,53,80,80,80,0,0,0,0,0,0,0,0,0,0,0,0,0,0,0,0,0,0,0,80,0,0,0,80,0,80,0,0,0,0,0,0,0,0,0,0,0,0,0,0,0,0,0,0,0,0,0,0,0,0,0,0,0,0,0,0,0,0,0,0,0]} 1. d4 {[%emt 0:00:11]} Nf6 {[%emt 0:03:06]} 2. c4 {[%emt 0:00:13]} g6 {[%emt 0:03:44]} 3. Nc3 {[%emt 0:00:17]} d5 {[%emt 0:00:05]} 4. Nf3 {[%emt 0:00:36]} Bg7 {[%emt 0:00:06]} 5. Qb3 {[%emt 0:00:53]} dxc4 {[%emt 0:00:16]} 6. Qxc4 {[%emt 0:00:12]} O-O {[%emt 0:00:39]} 7. e4 {[%emt 0:00:38]} Nc6 {[%emt 0:00:07]} 8. Be2 {[%emt 0:01:23]} e5 {[%emt 0:00:15]} 9. d5 {[%emt 0:03:00]} (9. Nxe5 Nxd4 10. O-O Nxe4 11. Nxe4 Bxe5 $17) 9... Nd4 {[%emt 0:00:05]} 10. Nxd4 {[%emt 0:02:21]} (10. Nxe5 $2 Nc2+ 11. Kd1 Nxa1 $19) 10... exd4 {[%emt 0:00:06]} 11. Qxd4 {[%emt 0:00:51]} c6 {[%emt 0:00:05][%cal Of6d5]} 12. Qc4 {[%emt 0:04:10]} b5 {[%emt 0:00:09]} 13. Qxc6 {[%emt 0:12:16]} Bd7 {[%emt 0:00:06]} 14. Qd6 {[%emt 0:00:40][%cal Oe1g1]} Re8 {[%emt 0:00:05]} 15. Bg5 {[%emt 0:17:02]} (15. Bxb5 Nxe4 16. Qxd7 Nf6+ $15 (16... Nxc3+ $2 17. Qxe8+ Qxe8+ 18. Bxe8 $18) (16... Bxc3+ 17. bxc3 Nf6+ 18. Qxe8+ Nxe8 19. Bc6 $16)) 15... b4 {[%emt 0:05:43]} 16. Qxb4 {[%emt 0:02:26]} Nxd5 {[%emt 0:00:28]} 17. Nxd5 {[%emt 0:01:18]} Qxg5 {[%emt 0:00:07]} 18. O-O {[%emt 0:00:46]} Bh3 {[%emt 0:31:46][%csl Gh3][%cal Rg5g2] A strong pair of Bishops.} 19. Bf3 {[%emt 0:01:55]} Rab8 {[%emt 0:02:56]} 20. Qa4 {[%emt 0:04:50][%cal Oa1b1]} Bxb2 {[%emt 0:07:34]} 21. Rab1 {[%emt 0:00:38]} Be5 {[%emt 0:00:08]} 22. Rxb8 {[%emt 0:08:23]} Rxb8 {[%emt 0:00:10]} 23. Qxa7 {[%emt 0:00:17]} Kg7 {[%emt 0:14:22]} 24. Rd1 {[%emt 0:08:55]} Rb2 {[%emt 0:01:51]} 25. Qa3 {[%emt 0:17:14]} h5 {[%emt 0:07:06][%cal Bh7h5,Bh5h4][%mdl 32]} 26. g3 {[%emt 0:10:43][%cal Od5f4]} h4 {[%emt 0:02:38][%cal Rh4g3] Hoping for ...hxg3.} 27. Nf4 {[%emt 0:02:05]} Bc8 {[%emt 0:06:17]} ({Black should play} 27... Bg4 $1 $14) 28. Bg2 {[%emt 0:05:57]} ({White has to play} 28. Nd3 $16 hxg3 29. Nxb2 gxf2+ 30. Kxf2 Qh4+ 31. Kf1 Qxh2 32. Bg2 Qf4+ 33. Qf3 Qxf3+ 34. Bxf3 Bxb2 35. a4) 28... Bg4 $11 {[%emt 0:11:12]} 29. Re1 {[%emt 0:00:10]} (29. Qe3 $5 Kh7 (29... Bxd1 $2 30. Ne6+ fxe6 31. Qxg5 $18) 30. Re1 $11) 29... Rd2 {[%emt 0:00:35]} (29... Bd4 {keeps more tension.} 30. Rf1 Qf6 31. Bf3 Bd7) 30. Qe3 {[%emt 0:02:22]} Bxf4 {[%emt 0:01:56]} (30... Rxa2 $2 31. Ne6+ Bxe6 32. Qxg5 $18) (30... Qd8 $11 31. Bf1 Rxa2) 31. gxf4 $16 {[%emt 0:00:04]} Qa5 {[%emt 0:00:04]} (31... Qd8 $16) 32. h3 $18 {[%emt 0:00:17]} Be6 {[%emt 0:00:21][%cal Od2d3] [#]} 33. a3 {[%emt 0:00:12]} (33. a4 $1 $18) 33... Ra2 $2 {[%emt 0:00:59]} (33... Qd8 $16) 34. Qd4+ {[%emt 0:02:49]} Kh7 {[%emt 0:00:37]} 35. Rb1 {[%emt 0:00:08] Rb8 would kill now.} Qxa3 $2 {[%emt 0:00:30]} (35... Rc2 {was worth a try.} 36. f5 gxf5) 36. Qf6 {[%emt 0:01:39]} (36. f5 $142) 36... Qa7 $2 {[%emt 0:01:54]} (36... Rc2 37. Rb8 (37. Qxh4+ Kg7 $16) 37... Qc1+ 38. Kh2 Rc8 39. Qxh4+ Kg7 40. Rxc8 Bxc8) 37. Qxh4+ {[%emt 0:00:09]} Kg7 {[%emt 0:00:22]} 38. Qg3 $2 {[%emt 0:00:57]} (38. f5) 38... Ra3 {[%emt 0:00:28]} 39. Qh4 $2 {[%emt 0:00:21]} (39. Bf3 $18) 39... Qd4 $2 {[%emt 0:00:26][%mdl 8192]} (39... Ra2 $1 $11 {and Black stays safe.}) 40. Qg5 $2 {[%emt 0:00:38]} (40. Rb8 $18 {[%csl Gb8][%cal Rh4h8]} Qd1+ 41. Kh2) 40... Bxh3 $14 {[%emt 0:03:16]} 41. f5 {[%emt 0:00:00]} (41. e5 $1 $14 Ra1 42. Qf6+ Kg8 43. Rxa1 Qxa1+ 44. Kh2 Bxg2 45. Qd8+ Kg7 46. Kxg2) 41... Bxg2 $11 {[%emt 0:00:00]} 42. Qxg2 {[%emt 0:00:00]} Ra1 {[%emt 0:00:00]} (42... Qd3 $11 43. Rf1 Qe2) 43. Rxa1 $14 {[%emt 0:00:00]} Qxa1+ {[%emt 0:00:00][%mdl 4096] Endgame KQ-KQ. White is a pawn up.} 44. Kh2 $1 {[%emt 0:00:00]} Qe5+ {[%emt 0:00:00]} 45. Kh3 {[%emt 0:00:00]} Qf4 {[%emt 0:00:00]} 46. fxg6 {[%emt 0:00:00]} fxg6 {[%emt 0:00:00]} 47. f3 {[%emt 0:00:00]} Qh6+ {[%emt 0:00:00]} 48. Kg3 {[%emt 0:00:00]} (48. Kg4 $16) 48... Qg5+ $11 {[%emt 0:00:00]} 49. Kh2 {[%emt 0:00:00]} Qh4+ {[%emt 0:00:00]} 50. Qh3 {[%emt 0:00:00]} Qf2+ {[%emt 0:00:00]} 51. Kh1 {[%emt 0:00:00]} Kf6 {[%emt 0:00:00]} 52. Qg2 {[%emt 0:00:00]} Qe1+ {[%emt 0:00:00]} 53. Kh2 {[%emt 0:00:00]} Qh4+ $1 {[%emt 0:00:00]} 54. Kg1 {[%emt 0:00:00]} Qe1+ {[%emt 0:00:00]} 55. Qf1 {[%emt 0:00:00]} Qg3+ {[%emt 0:00:00]} 56. Kh1 {[%emt 0:00:00]} Ke7 {[%emt 0:00:00]} 57. Qe2 {[%emt 0:00:00]} g5 {[%emt 0:00:00]} (57... Kf6 $11) 58. Qe3 {[%emt 0:00:00]} (58. Qg2 $16 Qf4 59. Kg1) 58... Kf7 {[%emt 0:00:00]} 59. Qb3+ {[%emt 0:00:00]} Kg7 {[%emt 0:00:00] [#]} (59... Kg6 $11) 60. Qb7+ {[%emt 0:00:00]} (60. Qb2+ $1 $16 Kg6 61. Qb6+ Kh5 62. Qe3) 60... Kg6 {[%emt 0:00:00]} (60... Kf8 $1 $11) 61. Qc6+ {[%emt 0:00:00]} ({White should play} 61. Qa6+ $16 Kh5 62. Qd3) 61... Kh5 {[%emt 0:00:00]} 62. Qe8+ {[%emt 0:00:00]} Kh6 {[%emt 0:00:00]} 63. Qf8+ {[%emt 0:00:00]} Kh5 {[%emt 0:00:00]} 64. Qh8+ {[%emt 0:00:00]} Kg6 {[%emt 0:00:00]} 65. Qe8+ {[%emt 0:00:00]} Kh6 {[%emt 0:00:00]} 66. Qh8+ {[%emt 0:00:00]} Kg6 {[%emt 0:00:00]} 67. Qc3 {[%emt 0:00:00]} Kh5 {[%emt 0:00:00]} 68. e5 {[%emt 0:00:00]} Qf2 {[%emt 0:01:47]} 69. Qd3 {[%emt 0:00:00]} Kh6 {[%emt 0:00:06] Prevents Qh7+} 70. Qe4 {[%emt 0:00:00]} Kg7 {[%emt 0:00:19]} 71. Qb7+ {[%emt 0:00:44]} Kh6 {[%emt 0:00:22]} 72. Qe4 {[%emt 0:01:10] Black must now prevent e6.} Kg7 {[%emt 0:00:21]} 73. Qf5 {[%emt 0:00:48]} Kh6 {[%emt 0:00:27]} 74. Qf6+ {[%emt 0:02:21]} Kh5 {[%emt 0:00:07]} 75. Qf7+ {[%emt 0:00:22]} Kh4 {[%emt 0:01:39] ( -> ...Kg3)} 76. Qc4+ {[%emt 0:00:09]} Kh5 {[%emt 0:00:07]} 77. Qg4+ {[%emt 0:00:08]} Kg6 {[%emt 0:00:11]} 78. Qe4+ {[%emt 0:00:15]} 1/2-1/2